lending/lending_fUSD_20250429
["ID","MTS","AMOUNT","RATE_DAILY","PERIOD"]
[359374898,1745956251438,-470.0,0.00027397,2]
[359374899,1745956251447,-470.0,0.00027397,2]
[359374900,1745956251456,-470.0,0.00027397,2]
[359374901,1745956251466,-470.0,0.00027397,2]
[359374902,1745956251475,-470.0,0.00027397,2]
[359374903,1745956251484,-470.0,0.00027397,2]
[359374904,1745956251494,-470.0,0.00027397,2]
[359374905,1745956251503,-519.8782486,0.00027397,2]
[359374906,1745956251512,-470.0,0.00027397,2]
[359374907,1745956251522,-470.0,0.00027397,2]
[359374908,1745956251537,-470.0,0.00027397,2]
[359374909,1745956251548,-470.0,0.00027397,2]
[359374910,1745956251559,-470.0,0.00027397,2]
[359374911,1745956251569,-430.04762388,0.00027397,2]
[359374912,1745956251628,-39.95237612,0.00027397,2]
[359374913,1745956251639,-470.0,0.00027397,2]
[359374914,1745956251649,-42.17776971,0.00027397,2]
[359374915,1745956329606,-8705.6237754,0.00023188,2]
[359374916,1745956329628,-200.0,0.00023548,2]
[359374917,1745956329650,-250.0,0.00023548,2]
[359374918,1745956329670,-187.11466007,0.00023909,2]
[359374919,1745956329692,-8705.6237754,0.00024009,2]
[359374920,1745956329714,-200.0,0.00024187,2]
[359374921,1745956329736,-8705.6237754,0.00024831,2]
[359374922,1745956329761,-204.97267019,0.00025,5]
[359374923,1745956329782,-200.0,0.00025506,2]
[359374924,1745956329803,-250.0,0.00025506,2]
[359374925,1745956329825,-8705.6237754,0.00025653,2]
[359374926,1745956329849,-204.97267014,0.000261,6]
[359374927,1745956329870,-8705.6237754,0.00026475,2]
[359374928,1745956329891,-853.02,0.0002681,2]
[359374929,1745956329914,-8705.6237754,0.00027297,2]
[359374930,1745956329940,-204.97267014,0.000273,7]
[359374931,1745956329961,-316.37301979,0.00027373,2]
[359374932,1745956329981,-302.02,0.00027396,2]
[359374933,1745956330003,-302.02,0.00027396,2]
[359374934,1745956330024,-302.02,0.00027396,2]
[359374935,1745956330049,-302.02,0.00027396,2]
[359374936,1745956330072,-302.02,0.00027396,2]
[359374937,1745956330097,-302.02,0.00027396,2]
[359374938,1745956330118,-302.02,0.00027396,2]
[359374939,1745956330139,-302.02,0.00027396,2]
[359374940,1745956330166,-302.02,0.00027396,2]
[359374941,1745956330190,-302.02,0.00027396,2]
[359374942,1745956330213,-427.82223029,0.00027397,2]
[359374943,1745956330235,-246.80942698,0.00027397,2]
[359374944,1745956359384,183.69148,0.00027397,39]
[359374945,1745956526779,864.66311833,0.00030135,120]
[359374946,1745956624372,151.0,0.00045982,30]
[359374947,1745956624623,500.0,0.00045982,30]
[359374948,1745956624978,156.587,0.00045982,30]
[359374949,1745956625170,200.0,0.00045982,30]
[359374950,1745956625379,518.5,0.00045982,30]
[359374951,1745956625597,162.380719,0.00045982,30]
[359374952,1745956625940,207.4,0.00045982,30]
[359374953,1745956625997,537.6845,0.00045982,30]
[359374954,1745956626243,162.380719,0.00045982,30]
[359374955,1745956626437,215.0738,0.00045982,30]
[359374956,1745956627067,223.0315306,0.00045982,30]
[359374957,1745956627677,231.28369723,0.00045982,30]
[359374958,1745956628462,239.84119403,0.00045982,30]
[359374959,1745956628972,248.71531821,0.00045982,30]
[359374960,1745956629595,257.91778498,0.00045982,30]
[359374961,1745956630537,267.46074303,0.00045982,30]
[359374962,1745956631305,277.35679052,0.00045982,30]
[359374963,1745956631942,287.61899177,0.00045982,30]
[359374964,1745956632575,298.26089446,0.00045982,30]
[359374965,1745956633227,309.29654756,0.00045982,30]
[359374966,1745956634395,320.74051982,0.00045982,30]
[359374967,1745956635045,320.74051982,0.00045982,30]
[359374968,1745956664801,183.69149,0.0002962,44]
[359374969,1745956730245,3628.45650813,0.00045982,30]
[359374971,1745956777935,250.0,0.00017,2]
[359374972,1745956779010,300.0,0.00019,2]
[359374973,1745956875931,389.65,0.00026195,120]
[359374974,1745956876216,389.65,0.00029469,120]
[359374975,1745956922111,298.99,0.00016712,2]
[359374976,1745956970305,183.69149,0.0002948,44]
[359374977,1745957201183,166.94001966,0.00019,2]
[359374978,1745957206194,166.03,0.00027425,30]
[359374983,1745957432128,-350.0,0.00021,2]
[359374984,1745957432138,-238.79704573,0.00021,2]
[359374985,1745957432183,-261.20295427,0.00021,2]
[359374986,1745957432194,-500.0,0.00021,2]
[359374987,1745957432204,-500.0,0.00021,2]
[359374988,1745957432214,-200.0,0.00021037,2]
[359374989,1745957432223,-200.0,0.00021075,2]
[359374990,1745957432232,-200.0,0.00021457,2]
[359374991,1745957432242,-1200.0,0.00021598,2]
[359374992,1745957432251,-161.8,0.00021599,2]
[359374993,1745957432260,-400.0,0.00023,2]
[359374994,1745957432269,-300.0,0.00023098,2]
[359374995,1745957432278,-200.0,0.000231,2]
[359374996,1745957432288,-200.0,0.000231,2]
[359374997,1745957432297,-167.10124423,0.00023188,2]
[359374998,1745957432307,-300.0,0.00023545,2]
[359374999,1745957432316,-985.7,0.00023546,2]
[359375000,1745957432326,-893.5838241,0.0002359,2]
[359375001,1745957432358,-786.4161759,0.0002359,2]
[359375002,1745957432368,-168.03,0.00024673,2]
[359375003,1745957432377,-450.0,0.00025,2]
[359375004,1745957432387,-204.97267014,0.00025,5]
[359375005,1745957432397,-420.0,0.00025072,2]
[359375006,1745957432406,-200.0,0.00025271,2]
[359375007,1745957432415,-1158.33,0.00025431,2]
[359375008,1745957432425,-420.0,0.00025545,2]
[359375009,1745957432435,-1037.2,0.00025616,2]
[359375010,1745957432445,-1514.8807653,0.00025766,2]
[359375013,1745957432472,-450.0,0.00025766,2]
[359375028,1745957438191,-282.6119774,0.00025766,2]
[359375029,1745957438244,-103.5072573,0.00025766,2]
[359375030,1745957438253,-331.74212188,0.0002581,2]
[359375031,1745957438265,-653.95787812,0.0002581,2]
[359375032,1745957438275,-1384.43,0.00026259,2]
[359375033,1745957438284,-204.97267014,0.00026264,6]
[359375034,1745957438294,-13679.59,0.00026267,2]
[359375035,1745957438304,-228.84161543,0.00026569,2]
[359375036,1745957438313,-785.0,0.0002659,2]
[359375037,1745957438323,-9632.89,0.00026591,2]
[359375038,1745957438335,-150.99,0.00026591,2]
[359375039,1745957438348,-20235.83,0.00026591,10]
[359375040,1745957438358,-999.99,0.00026591,2]
[359375041,1745957438368,-2350.6,0.00026591,2]
[359375042,1745957438377,-9999.99,0.00026591,2]
[359375043,1745957438386,-296.57,0.00026591,2]
[359375044,1745957438396,-9999.99,0.00026591,2]
[359375045,1745957438406,-1081.2,0.00026591,2]
[359375046,1745957438415,-150.99,0.00026591,2]
[359375047,1745957438425,-500.0,0.00027,2]
[359375048,1745957438434,-645.79228256,0.00027074,2]
[359375049,1745957438445,-269.9524,0.00027187,2]
[359375050,1745957438455,-3440.71583783,0.00027187,2]
[359375053,1745957438472,-165.41926217,0.00027187,2]
[359375054,1745957438482,-180.0,0.00027214,2]
[359375056,1745957438491,-16322.76553785,0.00027287,2]
[359375071,1745957440597,-755.17356215,0.00027287,2]
[359375072,1745957440606,-226.0003,0.00027287,2]
[359375073,1745957440616,-316.7963,0.00027287,2]
[359375074,1745957440626,-277.0809,0.00027287,2]
[359375075,1745957440636,-1000.0,0.00027287,2]
[359375076,1745957440645,-168.3648799,0.00027287,2]
[359375077,1745957440655,-1624.85627399,0.00027287,2]
[359375078,1745957440665,-3447.721,0.00027296,16]
[359375079,1745957440675,-165.56,0.00027296,16]
[359375080,1745957440685,-36226.7403,0.00027297,2]
[359375081,1745957440696,-1088.3938,0.00027297,2]
[359375082,1745957440706,-166.89403457,0.00027297,2]
[359375083,1745957440715,-171.20207542,0.00027297,2]
[359375084,1745957440726,-645.79228256,0.00027357,2]
[359375085,1745957440736,-1375.84,0.00027377,2]
[359375086,1745957440746,-1375.84,0.00027377,2]
[359375087,1745957440755,-39102.61408011,0.00027387,2]
[359375090,1745957440862,-722.878675,0.00027387,2]
[359375091,1745957440873,-758.2909421,0.00027387,2]
[359375092,1745957440894,-301.84,0.00027387,2]
[359375109,1745957446079,-2666.812,0.00027387,2]
[359375110,1745957446090,-366.3639928,0.00027387,2]
[359375111,1745957446342,-4727.93209541,0.00027387,2]
[359375112,1745957446448,-2156.90706397,0.00027387,2]
[359375220,1745957521934,200.0,0.00027931,117]
[359375221,1745957522323,200.0,0.00026239,117]
[359375222,1745957522369,200.0,0.00026882,117]
[359375223,1745957641976,200.0,0.00027931,117]
[359375224,1745957642033,200.0,0.00025392,117]
[359375225,1745957642127,200.0,0.00026305,117]
[359375228,1745957761310,200.0,0.0002793,117]
[359375229,1745957761389,200.0,0.00025391,117]
[359375230,1745957761518,200.0,0.00025889,117]
[359375233,1745957881800,200.0,0.0002793,117]
[359375234,1745957881884,200.0,0.00025391,117]
[359375235,1745957881959,200.0,0.0002561,117]
[359375238,1745958002307,200.0,0.0002793,117]
[359375239,1745958002380,200.0,0.00025391,117]
[359375240,1745958002461,200.0,0.00025391,117]
[359375241,1745958103985,320.0,0.00026175,120]
[359375242,1745958104215,320.0,0.00029447,120]
[359375243,1745958121864,200.0,0.00027929,117]
[359375244,1745958121976,200.0,0.0002539,117]
[359375245,1745958122054,200.0,0.00025391,117]
[359375246,1745958143903,170.17,0.00016712,2]
[359375247,1745958241898,200.0,0.00027929,117]
[359375248,1745958241977,200.0,0.0002539,117]
[359375249,1745958242054,200.0,0.00025391,117]
[359375250,1745958308891,57813.89998034,0.0002,2]
[359375251,1745958308944,1033.41298978,0.00045953,30]
[359375252,1745958311051,973.43506717,0.000154,2]
[359375253,1745958311367,332.81167611,0.00045953,120]
[359375254,1745958320230,364.51744476,0.00045953,120]
[359375255,1745958326901,1050.9075047,0.00025,60]
[359375256,1745958328729,2510.77600852,0.00011,2]
[359375257,1745958328769,429.51278785,0.00023,120]
[359375258,1745958329052,526.19509777,0.00045953,30]
[359375259,1745958329733,414.88856397,0.00045953,30]
[359375260,1745958333078,641.08411622,0.0002,120]
[359375261,1745958337690,16473.77385123,9e-05,2]
[359375262,1745958362667,306.33922271,0.00045953,90]
[359375264,1745958364525,1165.18132178,8e-05,2]
[359375265,1745958366967,368.71473446,0.00045953,120]
[359375266,1745958378386,567.78635595,0.00045953,120]
[359375267,1745958422632,158.08769554,0.00045953,120]
[359375268,1745958427093,281.7605727,0.00045953,120]
[359375269,1745958432054,2243.84340061,0.00021,120]
[359375270,1745958433210,1981.06578267,0.0002301,120]
[359375271,1745958434975,199.87604886,0.00045953,120]
[359375273,1745958442724,251.16382055,0.000101,2]
[359375274,1745958453516,-567.624,0.0001982,2]
[359375275,1745958453539,-225.07043049,0.00019829,2]
[359375276,1745958453562,-300.0,0.00019829,2]
[359375277,1745958453583,-85942.42451658,0.0001983,2]
[359375278,1745958453606,-250.0,0.00019865,2]
[359375279,1745958453632,-200.0,0.00019865,2]
[359375280,1745958453654,-59871.77974946,0.000199,2]
[359375281,1745958453675,-158.08935037,0.000199,2]
[359375282,1745958453697,-2191.3700442,0.000199,2]
[359375283,1745958453718,-1907.3364751,0.000199,2]
[359375284,1745958453740,-3906.1350483,0.000199,2]
[359375285,1745958453761,-171.79176316,0.000199,2]
[359375286,1745958453783,-2912.77765006,0.000199,2]
[359375287,1745958453804,-500.0,0.00019973,2]
[359375288,1745958453824,-264.2064585,0.00019973,2]
[359375289,1745958453845,-500.0,0.00019973,2]
[359375290,1745958453868,-666.0,0.00019999,2]
[359375291,1745958453890,-300.0,0.00019999,2]
[359375292,1745958453914,-151665.39451378,0.0002,2]
[359375293,1745958455522,503.62404984,0.00045953,120]
[359375294,1745958465304,2372.78009386,0.00045953,120]
[359375295,1745958468797,3146.90260373,0.00045953,120]
[359375296,1745958469776,243.18228683,0.00045953,30]
[359375297,1745958470561,929.4009569,0.0003,120]
[359375298,1745958472973,233.01388328,0.00045953,30]
[359375301,1745958474102,506.12618866,0.00045953,120]
[359375302,1745958476140,2020.0,0.0002,120]
[359375303,1745958476591,152.80721532,0.00045953,30]
[359375304,1745958482264,314.83844313,0.00045953,30]
[359375305,1745958484343,210.90262116,0.00045953,120]
[359375309,1745958490290,302.46705332,0.00025,60]
[359375310,1745958496161,-482.73225788,0.000199,2]
[359375311,1745958496182,-500.0,0.00019973,2]
[359375312,1745958496205,-11341.0,0.00019973,2]
[359375313,1745958496372,-646.0,0.00019973,2]
[359375314,1745958496393,-300.0,0.00019999,2]
[359375315,1745958496416,-345730.26774212,0.0002,2]
[359375316,1745958511713,492.19747132,0.00045953,120]
[359375324,1745958514612,526.62112627,0.00045953,120]
[359375325,1745958514652,1798.15572621,0.00045953,120]
[359375326,1745958514698,155.94160806,0.00045953,120]
[359375327,1745958515003,610.80855471,0.00045953,120]
[359375328,1745958515397,396.1080504,0.00045953,120]
[359375331,1745958515884,383.5614433,0.00045953,120]
[359375332,1745958516328,228.09583949,0.00028799,120]
[359375333,1745958516653,260.70979858,0.00045953,120]
[359375334,1745958516787,243.44466257,0.00045953,30]
[359375335,1745958517371,2840.37560416,0.00045953,120]
[359375336,1745958517609,1011.61926865,0.00045953,120]
[359375337,1745958517917,2288.01356112,0.00045953,30]
[359375338,1745958517965,378.10258391,0.0003,60]
[359375339,1745958518035,241.94295331,0.00045953,30]
[359375340,1745958518420,1147.66922251,0.00045953,120]
[359375341,1745958519953,443.84292145,0.00045953,120]
[359375342,1745958520965,972.82331932,0.00045953,60]
[359375343,1745958523195,259.33113119,0.000107,2]
[359375344,1745958523699,2601.0,0.000145,120]
[359375345,1745958523788,455.03272,0.00045953,120]
[359375347,1745958525104,202.56589039,0.00045953,120]
[359375349,1745958527408,535.38673406,0.00045953,30]
[359375350,1745958527687,920.34769937,0.00013368,2]
[359375351,1745958528421,645.92747234,0.0002,120]
[359375352,1745958529560,1176.9088283,0.00045953,30]
[359375353,1745958529673,1926.08495685,0.00045953,120]
[359375354,1745958529703,2105.07129166,0.00045953,30]
[359375355,1745958529756,268.83611023,0.00045953,30]
[359375356,1745958529856,1996.59671363,0.00045953,120]
[359375357,1745958529893,4025.49399138,0.00045953,60]
[359375358,1745958529922,3000.91296901,0.00045953,30]
[359375359,1745958540849,-1271.55765006,0.000199,2]
[359375360,1745958540872,-10727.25609735,0.000199,2]
[359375361,1745958540894,-3082.17218658,0.000199,2]
[359375362,1745958540922,-500.0,0.00019999,2]
[359375363,1745958540948,-333.04320394,0.00019999,2]
[359375364,1745958540971,-184085.97086207,0.0002,2]
[359375365,1745958568762,-171.79176316,0.000199,2]
[359375366,1745958568783,-1941.8517667,0.000199,2]
[359375367,1745958568805,-500.0,0.00019973,2]
[359375368,1745958568827,-300.0,0.00019999,2]
[359375369,1745958568852,-702109.52628302,0.0002,2]
[359375370,1745958568874,-200.0,0.0002,2]
[359375371,1745958568897,-4776.83018712,0.0002,2]
[359375372,1745958589949,250.0,0.00017,2]
[359375373,1745958591053,300.0,0.00019,2]
[359375374,1745958591083,-34862.8755153,0.000199,2]
[359375375,1745958591103,-681137.1244847,0.0002,2]
[359375376,1745958602705,2000.0,0.0002,4]
[359375377,1745958615739,188.55026987,0.000199,3]
[359375378,1745958624648,-171.20207542,0.000199,2]
[359375379,1745958624670,-321.82150526,0.000199,2]
[359375380,1745958624691,-2228.0,0.00019973,2]
[359375381,1745958624713,-400.96451374,0.00019973,2]
[359375382,1745958624733,-503.23534424,0.00019973,2]
[359375383,1745958624754,-300.0,0.00019998,2]
[359375384,1745958624776,-300.0,0.00019999,2]
[359375385,1745958624797,-500.0,0.00019999,2]
[359375386,1745958624819,-1200.0,0.00019999,2]
[359375387,1745958624842,-165074.77656134,0.0002,2]
[359375390,1745958632335,-292.61958378,0.0001999,2]
[359375391,1745958632350,-292.61958378,0.0001999,2]
[359375392,1745958632363,-292.61958378,0.0001999,2]
[359375393,1745958632376,-619.13612272,0.0002,2]
[359375394,1745958632393,-946.97866312,0.0002,2]
[359375395,1745958632463,-22169.01793139,0.0002,2]
[359375396,1745958632475,-1207.61647205,0.0002,2]
[359375397,1745958632490,-57186.65120872,0.0002,2]
[359375398,1745958632502,-91363.65252469,0.0002,2]
[359375399,1745958632518,-6832.95714243,0.0002,2]
[359375405,1745958632788,-934.33,0.0002,2]
[359375406,1745958632825,-319.0,0.0002,2]
[359375408,1745958632840,-23612.7014328,0.0002,2]
[359375414,1745958638331,-171356.58828301,0.0002,2]
[359375415,1745958638388,-67076.09572203,0.0002,2]
[359375416,1745958638398,-165380.25700668,0.0002,2]
[359375417,1745958638409,-326.98030476,0.0002,2]
[359375418,1745958638420,-12446.81598786,0.0002,2]
[359375419,1745958638431,-11720.67679787,0.0002,2]
[359375420,1745958638443,-7342.57998496,0.0002,2]
[359375421,1745958638454,-11157.38489646,0.0002,2]
[359375423,1745958638873,-4032536.7796105,0.0002,2]
[359375424,1745958638885,-1042.82955653,0.0002,2]
[359375428,1745958640475,-1234.69500997,0.0002,2]
[359375429,1745958640700,-277563.2250671,0.0002,2]
[359375430,1745958640717,-2023225.42609399,0.0002,2]
[359375431,1745958640727,-37351.69840631,0.0002,2]
[359375432,1745958640737,-4303.11545053,0.0002,2]
[359375433,1745958640746,-709.39652791,0.0002,2]
[359375434,1745958640755,-3333973.23906494,0.0002,2]
[359375435,1745958640782,-2881.1945751,0.0002,2]
[359375438,1745958644460,-88.25714336,0.0002,2]
[359375440,1745958644543,-925.2436,0.0002,2]
[359375441,1745958644653,-969.37166285,0.0002,2]
[359375446,1745958644826,-11293.53360042,0.0002,2]
[359375448,1745958644936,-240590.93066006,0.0002,2]
[359375449,1745958644947,-141313.53040444,0.0002,2]
[359375463,1745958646410,-760.9906189,0.0002,2]
[359375464,1745958646445,-738.71803972,0.0002,2]
[359375465,1745958646456,-26293.6568117,0.0002,2]
[359375466,1745958646561,-3804.0,0.0002,2]
[359375467,1745958646572,-9547.96183466,0.0002,2]
[359375468,1745958646617,-3423.764,0.0002,2]
[359375469,1745958646631,-365.4960051,0.0002,2]
[359375473,1745958655153,-847.70510004,0.000199,2]
[359375474,1745958655176,-664639.04205593,0.0002,2]
[359375475,1745958655198,-3950.0,0.0002,2]
[359375476,1745958655219,-1251.58584787,0.0002,2]
[359375477,1745958655240,-11841.12075256,0.0002,2]
[359375478,1745958655261,-1009.8745264,0.0002,2]
[359375479,1745958655281,-1760.64649686,0.0002,2]
[359375485,1745958710179,1036.34,0.00019847,2]
[359375488,1745958726756,151.0,0.00045953,30]
[359375489,1745958727181,151.0,0.00045953,30]
[359375502,1745958784953,-190.60160865,0.0002001,2]
[359375503,1745958784975,-5772.0,0.0002001,2]
[359375504,1745958784997,-200.0,0.00020094,2]
[359375505,1745958785020,-732.59314854,0.00020094,2]
[359375506,1745958785042,-200.0,0.00020178,2]
[359375507,1745958785063,-5937.98524281,0.000207,2]
[359375571,1745959096860,986.54,0.00026681,120]
[359375572,1745959097100,986.54,0.00029349,120]
[359375573,1745959255468,14254.44527659,0.0004594,120]
[359375574,1745959279869,2515.47,0.0004594,120]
[359375575,1745959299775,3353.96,0.0004594,120]
[359375576,1745959319929,4192.45,0.0004594,120]
[359375577,1745959339650,3353.96,0.0004594,120]
[359375578,1745959380285,2515.55,0.0004594,120]
[359375611,1745959831617,-547.6377,0.00020017,2]
[359375612,1745959831627,-250.0,0.00020118,2]
[359375613,1745959831636,-200.0,0.00020118,2]
[359375614,1745959831645,-517.71062651,0.00020169,2]
[359375615,1745959831655,-284.6516735,0.00020479,2]
[359375616,1745959831726,-307.74691831,0.00020479,2]
[359375617,1745959831736,-187.11466007,0.00020585,2]
[359375618,1745959831746,-150.0,0.00020685,2]
[359375619,1745959831755,-1200.0,0.00020698,2]
[359375621,1745959831764,-300.0,0.00020699,2]
[359375623,1745959831773,-15979.13003678,0.000207,2]
[359375625,1745959831783,-159.96,0.00020763,2]
[359375627,1745959831794,-2000.0,0.00020993,2]
[359375628,1745959831803,-1154.33641835,0.00021,2]
[359375629,1745959831813,-190.5174988,0.00021,2]
[359375630,1745959831823,-350.0,0.00021,2]
[359375631,1745959831832,-1697.56,0.00021044,2]
[359375632,1745959831842,-1000.0,0.00021061,2]
[359375633,1745959831851,-986.54,0.00021345,2]
[359375634,1745959831861,-13759.69429604,0.00021376,2]
[359375635,1745959831870,-200.0,0.00021379,2]
[359375637,1745959831881,-286.28651251,0.00021385,2]
[359375639,1745959831891,-250.0,0.00021386,2]
[359375640,1745959831900,-82919.76805025,0.00021386,2]
[359375641,1745959831911,-1942.91194975,0.00021386,2]
[359375643,1745959831921,-20706.94,0.00021409,2]
[359375645,1745959831931,-187.03,0.00021557,2]
[359375647,1745959831940,-7312.75691596,0.000217,2]
[359375649,1745959831949,-152.43,0.00021711,2]
[359375651,1745959831959,-152.43,0.00021719,2]
[359375652,1745959831969,-500.0,0.00021726,2]
[359375653,1745959831978,-152.43,0.00021728,2]
[359375654,1745959831987,-152.43,0.00021736,2]
[359375655,1745959831997,-2702.63,0.0002174,2]
[359375656,1745959832006,-310.02,0.00021742,2]
[359375657,1745959832015,-152.43,0.00021744,2]
[359375658,1745959832025,-152.43,0.00021753,2]
[359375659,1745959832034,-152.43,0.00021761,2]
[359375660,1745959832044,-152.43,0.00021769,2]
[359375661,1745959832053,-152.43,0.00021778,2]
[359375662,1745959832062,-152.43,0.00021786,2]
[359375663,1745959832073,-152.43,0.00021794,2]
[359375664,1745959832083,-5053.54823058,0.000218,2]
[359375669,1745959837630,-380.45176942,0.000218,2]
[359375670,1745959837642,-152.43,0.00021803,2]
[359375671,1745959837650,-152.43,0.00021811,2]
[359375672,1745959837660,-552.28,0.00021818,3]
[359375673,1745959837668,-152.43,0.00021819,2]
[359375674,1745959837678,-150.0,0.00021828,2]
[359375675,1745959837687,-440.83,0.00021828,2]
[359375676,1745959837695,-2255.06,0.00021828,2]
[359375677,1745959837704,-200.0,0.00021828,2]
[359375678,1745959837713,-162.69,0.00021828,2]
[359375679,1745959837722,-8694.05038641,0.00021828,2]
[359375682,1745959837758,-10002.18233646,0.00021828,2]
[359375722,1745959839756,-2363.28051114,0.00021828,2]
[359375723,1745959839920,-2840.48676599,0.00021828,2]
[359375724,1745959839929,-3329.69446235,0.00021828,2]
[359375725,1745959839942,-499.4304,0.00021828,2]
[359375741,1745959842808,-170.87513765,0.00021828,2]
[359375742,1745959842817,-150.0,0.00021917,2]
[359375743,1745959842826,-171.20207542,0.00021955,2]
[359375744,1745959842835,-150.0,0.00021967,2]
[359375745,1745959842843,-247.68643105,0.00022,2]
[359375746,1745959842852,-652.35546811,0.00022,7]
[359375747,1745959842861,-500.0,0.00022,2]
[359375748,1745959842870,-250.0,0.00022019,2]
[359375749,1745959842879,-200.0,0.00022019,2]
[359375750,1745959842888,-200.0,0.00022019,2]
[359375751,1745959842898,-166.53,0.00022036,2]
[359375752,1745959842907,-1616.23331294,0.00022069,2]
[359375757,1745959845575,-383.76668706,0.00022069,2]
[359375758,1745959845585,-250.0,0.00022074,2]
[359375759,1745959845594,-200.0,0.00022074,2]
[359375760,1745959845603,-232.11952016,0.0002211,2]
[359375761,1745959845613,-39.06379778,0.00022111,2]
[359375762,1745959845748,-0.0049995,0.00022111,2]
[359375763,1745959845799,-997.27120272,0.00022111,2]
[359375764,1745959845810,-87.12012369,0.00022247,2]
[359375765,1745959845821,-289.895,0.00022247,2]
[359376413,1745959924506,156.38,0.00016712,2]
[359376415,1745960080813,186.68,0.00017462,2]
[359376416,1745960160522,1509.7,0.00030137,120]
[359376417,1745960175555,431.54,0.00027284,120]
[359376418,1745960175809,431.54,0.00030013,120]
[359376419,1745960253157,50000.0,0.00045941,30]
[359376420,1745960275490,50000.0,0.00045941,31]
[359376421,1745960280453,50000.0,0.00045941,32]
[359376422,1745960332585,50000.0,0.00045941,33]
[359376424,1745960353522,50000.0,0.00045941,34]
[359376425,1745960366821,1053.0,0.00030137,120]
[359376426,1745960403277,250.0,0.00017,2]
[359376427,1745960404354,300.0,0.00019,2]
[359376429,1745960601497,2016.639,0.00030137,120]
[359376431,1745960701521,50000.0,0.0004594,30]
[359376432,1745960706934,-271.33032667,0.00020396,2]
[359376433,1745960730895,50000.0,0.0004594,31]
[359376436,1745960765994,50000.0,0.0004594,32]
[359376437,1745960782540,45120.9480199,0.0004594,33]
[359376438,1745960838053,-151.15247333,0.00020396,2]
[359376439,1745960846506,-250.00988087,0.00020396,2]
[359376441,1745960855085,-232.12565862,0.00020396,2]
[359376442,1745960863188,-163.25159755,0.00020396,2]
[359376443,1745960869522,-14.49006296,0.00020396,2]
[359376444,1745960869547,-188.97032667,0.00020437,2]
[359376445,1745960887772,4752.79,0.00030137,120]
[359376446,1745960892966,2000.0,0.00019307,2]
[359376447,1745960906136,2000.0,0.0003,30]
[359376458,1745960982507,156.38,0.00016712,2]
[359376462,1745961031652,-11.02967333,0.00020437,2]
[359376463,1745961031661,-200.0,0.00020458,2]
[359376464,1745961031671,-200.0,0.00020796,2]
[359376465,1745961031680,-72.5612945,0.00021,2]
[359376469,1745961031961,-277.4387055,0.00021,2]
[359376471,1745961031970,-201.0,0.00021315,2]
[359376473,1745961031979,-401.61452519,0.00021727,2]
[359376475,1745961031989,-401.61452517,0.00021755,2]
[359376477,1745961031998,-401.61452517,0.00021782,2]
[359376479,1745961032008,-300.0,0.00021826,2]
[359376480,1745961032017,-1100.0,0.00021827,2]
[359376482,1745961032026,-1200.0,0.00021827,2]
[359376484,1745961032035,-300.0,0.00021827,2]
[359376486,1745961032045,-3623.71431731,0.00021828,2]
[359376489,1745961032064,-1463.49568269,0.00021828,2]
[359376491,1745961032074,-1964.6,0.00021828,2]
[359376493,1745961032084,-250.0,0.00021828,2]
[359376494,1745961032093,-676.72,0.00021828,2]
[359376495,1745961032103,-188.68,0.00021828,2]
[359376496,1745961032112,-431.54,0.00021828,2]